fUST/lending_fUST_20240727
["ID","MTS","AMOUNT","RATE_DAILY","PERIOD"]
[333272353,1722011438649,-500.0,0.00013698,2]
[333272355,1722011438659,-500.0,0.00013698,2]
[333272357,1722011438670,-231.10271594,0.00013698,2]
[333272359,1722011438679,-500.0,0.00013698,2]
[333272361,1722011438689,-506.34635955,0.00013698,2]
[333272363,1722011438698,-500.0,0.00013698,2]
[333272365,1722011438707,-500.0,0.00013698,2]
[333272367,1722011438717,-500.0,0.00013698,2]
[333272370,1722011438727,-500.0,0.00013698,2]
[333272372,1722011438737,-500.0,0.00013698,2]
[333272374,1722011438746,-500.0,0.00013698,2]
[333272375,1722011438755,-485.13906407,0.00013698,2]
[333272376,1722011438764,-500.0,0.00013698,2]
[333272377,1722011438774,-501.29,0.00013698,2]
[333272378,1722011438784,-500.0,0.00013698,2]
[333272379,1722011438793,-500.0,0.00013698,2]
[333272380,1722011438810,-500.0,0.00013698,2]
[333272381,1722011438821,-809.87,0.00013698,2]
[333272382,1722011438831,-500.0,0.00013698,2]
[333272383,1722011438840,-500.0,0.00013698,2]
[333272384,1722011438851,-500.0,0.00013698,2]
[333272385,1722011438862,-597.44125792,0.00013698,2]
[333272386,1722011438876,-500.0,0.00013698,2]
[333272387,1722011438887,-706.15,0.00013698,2]
[333272388,1722011438899,-500.0,0.00013698,2]
[333272389,1722011438911,-500.0,0.00013698,2]
[333272390,1722011438921,-646.7,0.00013698,2]
[333272391,1722011438932,-500.0,0.00013698,2]
[333272392,1722011438943,-500.0,0.00013698,2]
[333272393,1722011438954,-500.0,0.00013698,2]
[333272394,1722011438964,-638.96,0.00013698,2]
[333272395,1722011438974,-500.0,0.00013698,2]
[333272396,1722011438984,-500.0,0.00013698,2]
[333272397,1722011438993,-500.0,0.00013698,2]
[333272398,1722011439002,-697.87,0.00013698,2]
[333272399,1722011439011,-634.3,0.00013698,2]
[333272400,1722011439023,-500.0,0.00013698,2]
[333272401,1722011439033,-820.18,0.00013698,2]
[333272402,1722011439042,-500.0,0.00013698,2]
[333272403,1722011439053,-500.0,0.00013698,2]
[333272404,1722011439069,-500.0,0.00013698,2]
[333272405,1722011439079,-500.0,0.00013698,2]
[333272406,1722011439089,-500.0,0.00013698,2]
[333272407,1722011439098,-734.81,0.00013698,2]
[333272408,1722011439109,-500.0,0.00013698,2]
[333272409,1722011439118,-500.0,0.00013698,2]
[333272410,1722011439128,-500.0,0.00013698,2]
[333272411,1722011439137,-500.0,0.00013698,2]
[333272412,1722011439147,-500.0,0.00013698,2]
[333272413,1722011439157,-500.0,0.00013698,2]
[333272414,1722011439167,-500.0,0.00013698,2]
[333272415,1722011439177,-500.0,0.00013698,2]
[333272416,1722011439187,-938.61,0.00013698,2]
[333272417,1722011439197,-500.0,0.00013698,2]
[333272418,1722011439206,-500.0,0.00013698,2]
[333272419,1722011439216,-540.09,0.00013698,2]
[333272420,1722011439226,-500.0,0.00013698,2]
[333272421,1722011439235,-741.37,0.00013698,2]
[333272422,1722011439244,-500.0,0.00013698,2]
[333272423,1722011439253,-500.0,0.00013698,2]
[333272424,1722011439264,-500.0,0.00013698,2]
[333272425,1722011439274,-1484.78,0.00013698,2]
[333272426,1722011439283,-500.0,0.00013698,2]
[333272427,1722011439293,-500.0,0.00013698,2]
[333272428,1722011439310,-500.0,0.00013698,2]
[333272429,1722011439320,-500.0,0.00013698,2]
[333272430,1722011439330,-500.0,0.00013698,2]
[333272431,1722011439339,-500.0,0.00013698,2]
[333272432,1722011439349,-500.0,0.00013698,2]
[333272433,1722011439359,-548.85,0.00013698,2]
[333272434,1722011439369,-500.0,0.00013698,2]
[333272435,1722011439378,-500.0,0.00013698,2]
[333272436,1722011439388,-500.0,0.00013698,2]
[333272437,1722011439398,-500.0,0.00013698,2]
[333272438,1722011439407,-500.0,0.00013698,2]
[333272439,1722011439417,-500.0,0.00013698,2]
[333272440,1722011439427,-500.0,0.00013698,2]
[333272441,1722011439437,-500.0,0.00013698,2]
[333272442,1722011439447,-500.0,0.00013698,2]
[333272443,1722011439456,-500.0,0.00013698,2]
[333272444,1722011439466,-531.72804188,0.00013698,2]
[333272445,1722011439476,-507.10437537,0.00013698,2]
[333272446,1722011439487,-500.0,0.00013698,2]
[333272447,1722011439497,-500.0,0.00013698,2]
[333272448,1722011439506,-500.0,0.00013698,2]
[333272449,1722011439516,-502.9,0.00013698,2]
[333272450,1722011439526,-500.0,0.00013698,2]
[333272451,1722011439535,-507.14043006,0.00013698,2]
[333272452,1722011439545,-500.0,0.00013698,2]
[333272453,1722011439563,-513.41327555,0.00013698,2]
[333272454,1722011439572,-216.23443795,0.00013698,2]
[333272455,1722011439582,-500.0,0.00013698,2]
[333272456,1722011439592,-501.11110698,0.00013698,2]
[333272457,1722011439602,-500.0,0.00013698,2]
[333272458,1722011439611,-500.0,0.00013698,2]
[333272459,1722011439622,-500.0,0.00013698,2]
[333272460,1722011439633,-500.0,0.00013698,2]
[333272461,1722011439643,-515.77249068,0.00013698,2]
[333272462,1722011439653,-490.29506859,0.00013698,2]
[333272463,1722011439665,-1470.44,0.00013698,2]
[333272464,1722011439675,-964.74,0.00013698,2]
[333272465,1722011439684,-500.0,0.00013698,2]
[333272466,1722011439693,-500.0,0.00013698,2]
[333272467,1722011439703,-500.0,0.00013698,2]
[333272468,1722011439712,-5047.96,0.00013698,2]
[333272469,1722011439722,-500.0,0.00013698,2]
[333272470,1722011439731,-696.0,0.00013698,2]
[333272471,1722011439740,-500.0,0.00013698,2]
[333272472,1722011439749,-500.0,0.00013698,2]
[333272473,1722011439758,-570.38,0.00013698,2]
[333272474,1722011439768,-500.0,0.00013698,2]
[333272476,1722011439777,-500.0,0.00013698,2]
[333272478,1722011439786,-734.5,0.00013698,2]
[333272479,1722011439796,-1164.62,0.00013698,2]
[333272480,1722011439813,-500.0,0.00013698,2]
[333272481,1722011439822,-622.95,0.00013698,2]
[333272482,1722011439832,-656.84,0.00013698,2]
[333272483,1722011439841,-500.0,0.00013698,2]
[333272484,1722011439851,-507.96421758,0.00013698,2]
[333272485,1722011439860,-500.0,0.00013698,2]
[333272486,1722011439873,-814.69,0.00013698,2]
[333272487,1722011439884,-500.0,0.00013698,2]
[333272488,1722011439893,-500.0,0.00013698,2]
[333272489,1722011439903,-500.0,0.00013698,2]
[333272490,1722011439914,-500.0,0.00013698,2]
[333272491,1722011439925,-574.78788849,0.00013698,2]
[333272492,1722011439936,-774.32,0.00013698,2]
[333272493,1722011439948,-500.0,0.00013698,2]
[333272494,1722011439959,-500.0,0.00013698,2]
[333272495,1722011439970,-4557.51,0.00013698,2]
[333272496,1722011439980,-500.0,0.00013698,2]
[333272497,1722011439991,-500.0,0.00013698,2]
[333272498,1722011440002,-500.0,0.00013698,2]
[333272499,1722011440014,-500.0,0.00013698,2]
[333272500,1722011440025,-500.0,0.00013698,2]
[333272511,1722011440190,-500.0,0.00013698,2]
[333272513,1722011440200,-696.33,0.00013698,2]
[333272515,1722011440210,-500.0,0.00013698,2]
[333272517,1722011440220,-972.25,0.00013698,2]
[333272519,1722011440230,-500.0,0.00013698,2]
[333272521,1722011440239,-561.91,0.00013698,2]
[333272523,1722011440249,-1724.63,0.00013698,2]
[333272525,1722011440258,-993.15,0.00013698,2]
[333272527,1722011440268,-500.0,0.00013698,2]
[333272529,1722011440277,-1041.76,0.00013698,2]
[333272530,1722011440286,-500.0,0.00013698,2]
[333272532,1722011440296,-509.45587838,0.00013698,2]
[333272534,1722011440312,-500.0,0.00013698,2]
[333272536,1722011440321,-1578.28,0.00013698,2]
[333272538,1722011440331,-483.78754246,0.00013698,2]
[333272540,1722011440340,-500.0,0.00013698,2]
[333272542,1722011440350,-757.57,0.00013698,2]
[333272544,1722011440360,-500.0,0.00013698,2]
[333272546,1722011440369,-500.0,0.00013698,2]
[333272548,1722011440379,-500.0,0.00013698,2]
[333272549,1722011440389,-896.92,0.00013698,2]
[333272551,1722011440398,-500.0,0.00013698,2]
[333272553,1722011440408,-509.82,0.00013698,2]
[333272555,1722011440417,-500.0,0.00013698,2]
[333272557,1722011440427,-1385.98,0.00013698,2]
[333272559,1722011440436,-3416.61,0.00013698,2]
[333272561,1722011440445,-500.0,0.00013698,2]
[333272563,1722011440456,-500.0,0.00013698,2]
[333272565,1722011440466,-500.0,0.00013698,2]
[333272567,1722011440476,-534.14,0.00013698,2]
[333272569,1722011440485,-500.0,0.00013698,2]
[333272571,1722011440495,-500.0,0.00013698,2]
[333272572,1722011440504,-500.0,0.00013698,2]
[333272574,1722011440513,-500.0,0.00013698,2]
[333272576,1722011440522,-642.72,0.00013698,2]
[333272578,1722011440531,-629.09,0.00013698,2]
[333272580,1722011440540,-500.0,0.00013698,2]
[333272582,1722011440550,-558.32,0.00013698,2]
[333272584,1722011440568,-781.33,0.00013698,2]
[333272586,1722011440578,-500.0,0.00013698,2]
[333272588,1722011440587,-500.0,0.00013698,2]
[333272590,1722011440596,-500.0,0.00013698,2]
[333272592,1722011440606,-3040.98,0.00013698,2]
[333272594,1722011440615,-500.0,0.00013698,2]
[333272596,1722011440625,-1407.79,0.00013698,2]
[333272597,1722011440636,-786.7,0.00013698,2]
[333272599,1722011440646,-500.0,0.00013698,2]
[333272601,1722011440657,-698.58,0.00013698,2]
[333272604,1722011440667,-500.0,0.00013698,2]
[333272606,1722011440676,-500.0,0.00013698,2]
[333272607,1722011440686,-500.0,0.00013698,2]
[333272609,1722011440695,-500.0,0.00013698,2]
[333272610,1722011440704,-500.0,0.00013698,2]
[333272611,1722011440714,-500.0,0.00013698,2]
[333272612,1722011440723,-699.55,0.00013698,2]
[333272613,1722011440734,-383.56745157,0.00013698,2]
[333272614,1722011440743,-500.0,0.00013698,2]
[333272615,1722011440753,-500.0,0.00013698,2]
[333272616,1722011440762,-500.0,0.00013698,2]
[333272617,1722011440772,-500.366841,0.00013698,2]
[333272618,1722011440782,-918.43,0.00013698,2]
[333272619,1722011440791,-500.0,0.00013698,2]
[333272620,1722011440801,-500.0,0.00013698,2]
[333272621,1722011440820,-520.52316604,0.00013698,2]
[333272622,1722011440829,-500.0,0.00013698,2]
[333272623,1722011440839,-500.0,0.00013698,2]
[333272624,1722011440849,-812.4,0.00013698,2]
[333272625,1722011440861,-500.0,0.00013698,2]
[333272626,1722011440875,-501.8,0.00013698,2]
[333272627,1722011440885,-500.0,0.00013698,2]
[333272628,1722011440895,-707.31,0.00013698,2]
[333272629,1722011440905,-547.02,0.00013698,2]
[333272630,1722011440918,-596.31,0.00013698,2]
[333272631,1722011440928,-500.0,0.00013698,2]
[333272632,1722011440939,-1611.43,0.00013698,2]
[333272633,1722011440950,-500.0,0.00013698,2]
[333272634,1722011440961,-530.65,0.00013698,2]
[333272635,1722011440971,-500.0,0.00013698,2]
[333272636,1722011440981,-500.0,0.00013698,2]
[333272637,1722011440994,-500.0,0.00013698,2]
[333272638,1722011441004,-1088.49,0.00013698,2]
[333272639,1722011441013,-1799.55,0.00013698,2]
[333272640,1722011441024,-500.0,0.00013698,2]
[333272641,1722011441034,-226.78110043,0.00013698,2]
[333272642,1722011441044,-500.0,0.00013698,2]
[333272644,1722011441053,-500.0,0.00013698,2]
[333272645,1722011441071,-178.17753191,0.00013698,2]
[333272647,1722011441081,-410.0497759,0.00013698,2]
[333272649,1722011441090,-500.0,0.00013698,2]
[333272651,1722011441100,-500.0,0.00013698,2]
[333272653,1722011441110,-500.0,0.00013698,2]
[333272655,1722011441119,-476.33540412,0.00013698,2]
[333272657,1722011441129,-500.0,0.00013698,2]
[333272659,1722011441138,-500.0,0.00013698,2]
[333272661,1722011441149,-500.0,0.00013698,2]
[333272663,1722011441159,-500.0,0.00013698,2]
[333272665,1722011441168,-500.0,0.00013698,2]
[333272667,1722011441178,-500.0,0.00013698,2]
[333272669,1722011441189,-500.0,0.00013698,2]
[333272671,1722011441198,-356.53476463,0.00013698,2]
[333272673,1722011441208,-280.52941493,0.00013698,2]
[333272675,1722011441218,-345.44978991,0.00013698,2]
[333272676,1722011441227,-367.53930495,0.00013843,2]
[333272679,1722011441236,-4349.21747622,0.00013854,2]
[333272680,1722011441246,-1499.60415177,0.00013862,2]
[333272682,1722011441256,-3216.00811152,0.000139,2]
[333272684,1722011441266,-87543.4985143,0.00013951,2]
[333272686,1722011441275,-160.0,0.00013958,6]
[333272688,1722011441285,-42814.3857838,0.00013961,5]
[333272766,1722011442081,-500.0,0.00013698,2]
[333272768,1722011442090,-2303.93030489,0.00013961,5]
[333272774,1722011442140,-554.80839496,0.00013961,5]
[333272776,1722011442153,-133865.07821628,0.00013961,5]
[333272778,1722011442164,-4029.3956889,0.00013961,5]
[333272780,1722011442174,-262630.495543,0.00013962,2]
[333272783,1722011442184,-500.0,0.00013972,2]
[333272784,1722011442195,-500.0,0.00013972,2]
[333272785,1722011442207,-500.0,0.00013972,2]
[333272786,1722011442218,-505.86713518,0.00013972,2]
[333272787,1722011442227,-500.0,0.00013972,2]
[333272788,1722011442237,-500.0,0.00013972,2]
[333272789,1722011442249,-500.0,0.00013972,2]
[333272790,1722011442261,-500.0,0.00013972,2]
[333272791,1722011442270,-500.0,0.00013972,2]
[333272792,1722011442280,-809.87,0.00013972,2]
[333272793,1722011442289,-500.0,0.00013972,2]
[333272794,1722011442298,-500.0,0.00013972,2]
[333272795,1722011442315,-500.0,0.00013972,2]
[333272796,1722011442324,-500.0,0.00013972,2]
[333272797,1722011442333,-706.15,0.00013972,2]
[333272798,1722011442344,-500.0,0.00013972,2]
[333272799,1722011442356,-500.0,0.00013972,2]
[333272800,1722011442367,-500.0,0.00013972,2]
[333272801,1722011442376,-638.96,0.00013972,2]
[333272802,1722011442386,-616.59630349,0.00013972,2]
[333272803,1722011442395,-500.0,0.00013972,2]
[333272804,1722011442404,-500.0,0.00013972,2]
[333272805,1722011442414,-697.87,0.00013972,2]
[333272806,1722011442423,-634.3,0.00013972,2]
[333272807,1722011442432,-500.0,0.00013972,2]
[333272808,1722011442442,-820.18,0.00013972,2]
[333272809,1722011442451,-420.41847658,0.00013972,2]
[333272810,1722011442461,-500.0,0.00013972,2]
[333272811,1722011442471,-500.0,0.00013972,2]
[333272812,1722011442481,-500.0,0.00013972,2]
[333272813,1722011442490,-734.81,0.00013972,2]
[333272814,1722011442499,-505.60113204,0.00013972,2]
[333272815,1722011442511,-534.09194232,0.00013972,2]
[333272816,1722011442521,-500.0,0.00013972,2]
[333272819,1722011442532,-500.0,0.00013972,2]
[333272821,1722011442542,-500.0,0.00013972,2]
[333272823,1722011442553,-500.0,0.00013972,2]
[333272825,1722011442570,-500.0,0.00013972,2]
[333272827,1722011442579,-938.61,0.00013972,2]
[333272829,1722011442588,-503.48151961,0.00013972,2]
[333272831,1722011442598,-540.09,0.00013972,2]
[333272833,1722011442607,-500.0,0.00013972,2]
[333272835,1722011442617,-741.37,0.00013972,2]
[333272837,1722011442626,-500.0,0.00013972,2]
[333272839,1722011442638,-352.51399078,0.00013972,2]
[333272841,1722011442647,-500.0,0.00013972,2]
[333272843,1722011442656,-1484.78,0.00013972,2]
[333272845,1722011442666,-500.0,0.00013972,2]
[333272847,1722011442675,-500.0,0.00013972,2]
[333272849,1722011442685,-500.0,0.00013972,2]
[333272851,1722011442694,-512.18768842,0.00013972,2]
[333272852,1722011442704,-500.0,0.00013972,2]
[333272853,1722011442713,-500.0,0.00013972,2]
[333272854,1722011442722,-500.0,0.00013972,2]
[333272856,1722011442731,-548.85,0.00013972,2]
[333272857,1722011442741,-500.0,0.00013972,2]
[333272860,1722011442750,-500.0,0.00013972,2]
[333272862,1722011442759,-500.0,0.00013972,2]
[333272863,1722011442769,-500.0,0.00013972,2]
[333272864,1722011442778,-500.0,0.00013972,2]
[333272865,1722011442788,-500.0,0.00013972,2]
[333272866,1722011442796,-500.0,0.00013972,2]
[333272867,1722011442807,-500.0,0.00013972,2]
[333272868,1722011442823,-500.0,0.00013972,2]
[333272869,1722011442834,-502.9,0.00013972,2]
[333272870,1722011442845,-500.0,0.00013972,2]
[333272871,1722011442856,-500.0,0.00013972,2]
[333272873,1722011442867,-500.0,0.00013972,2]
[333272874,1722011442879,-1470.44,0.00013972,2]
[333272876,1722011442889,-964.74,0.00013972,2]
[333272878,1722011442899,-500.0,0.00013972,2]
[333272880,1722011442909,-5047.96,0.00013972,2]
[333272882,1722011442919,-500.0,0.00013972,2]
[333272884,1722011442928,-696.0,0.00013972,2]
[333272885,1722011442937,-500.0,0.00013972,2]
[333272887,1722011442948,-500.0,0.00013972,2]
[333272889,1722011442957,-734.5,0.00013972,2]
[333272890,1722011442967,-1164.62,0.00013972,2]
[333272892,1722011442978,-500.0,0.00013972,2]
[333272893,1722011442988,-656.84,0.00013972,2]
[333272894,1722011442999,-500.0,0.00013972,2]
[333272895,1722011443010,-500.0,0.00013972,2]
[333272896,1722011443021,-814.69,0.00013972,2]
[333272897,1722011443030,-500.0,0.00013972,2]
[333272898,1722011443040,-500.0,0.00013972,2]
[333272899,1722011443052,-500.0,0.00013972,2]
[333272900,1722011443070,-774.32,0.00013972,2]
[333272901,1722011443080,-500.0,0.00013972,2]
[333272903,1722011443090,-500.0,0.00013972,2]
[333272905,1722011443099,-4557.51,0.00013972,2]
[333272907,1722011443109,-500.0,0.00013972,2]
[333272908,1722011443118,-500.0,0.00013972,2]
[333272910,1722011443127,-500.0,0.00013972,2]
[333272913,1722011443137,-696.33,0.00013972,2]
[333272914,1722011443146,-500.0,0.00013972,2]
[333272916,1722011443156,-972.25,0.00013972,2]
[333272918,1722011443165,-500.0,0.00013972,2]
[333272920,1722011443174,-561.91,0.00013972,2]
[333272922,1722011443185,-1724.63,0.00013972,2]
[333272924,1722011443195,-993.15,0.00013972,2]
[333272926,1722011443204,-1041.76,0.00013972,2]
[333272928,1722011443213,-500.0,0.00013972,2]
[333272930,1722011443223,-500.0,0.00013972,2]
[333272932,1722011443232,-1578.28,0.00013972,2]
[333272935,1722011443243,-757.57,0.00013972,2]
[333272936,1722011443253,-500.0,0.00013972,2]
[333272939,1722011443262,-896.92,0.00013972,2]
[333272940,1722011443272,-500.0,0.00013972,2]
[333272942,1722011443282,-509.82,0.00013972,2]
[333272944,1722011443292,-500.0,0.00013972,2]
[333272947,1722011443302,-1385.98,0.00013972,2]
[333272948,1722011443319,-3416.61,0.00013972,2]
[333272950,1722011443330,-500.0,0.00013972,2]
[333272952,1722011443339,-500.0,0.00013972,2]
[333272954,1722011443349,-500.0,0.00013972,2]
[333272956,1722011443358,-534.14,0.00013972,2]
[333272958,1722011443368,-500.0,0.00013972,2]
[333272959,1722011443377,-500.0,0.00013972,2]
[333272960,1722011443386,-500.0,0.00013972,2]
[333272961,1722011443395,-500.0,0.00013972,2]
[333272962,1722011443404,-642.72,0.00013972,2]
[333272964,1722011443414,-629.09,0.00013972,2]
[333272966,1722011443423,-558.32,0.00013972,2]
[333272968,1722011443433,-781.33,0.00013972,2]
[333272970,1722011443443,-500.0,0.00013972,2]
[333272972,1722011443454,-500.0,0.00013972,2]
[333272974,1722011443463,-3040.98,0.00013972,2]
[333272976,1722011443473,-1407.79,0.00013972,2]
[333272977,1722011443483,-786.7,0.00013972,2]
[333272978,1722011443493,-698.58,0.00013972,2]
[333272979,1722011443502,-500.0,0.00013972,2]
[333272980,1722011443511,-500.0,0.00013972,2]
[333272981,1722011443520,-699.55,0.00013972,2]
[333272982,1722011443530,-500.0,0.00013972,2]
[333272983,1722011443539,-500.0,0.00013972,2]
[333272984,1722011443548,-500.0,0.00013972,2]
[333272985,1722011443563,-918.43,0.00013972,2]
[333272986,1722011443572,-500.0,0.00013972,2]
[333272988,1722011443582,-500.0,0.00013972,2]
[333272989,1722011443591,-500.0,0.00013972,2]
[333272990,1722011443600,-812.4,0.00013972,2]
[333272991,1722011443610,-500.0,0.00013972,2]
[333272992,1722011443619,-500.0,0.00013972,2]
[333272993,1722011443629,-707.31,0.00013972,2]
[333272994,1722011443640,-547.02,0.00013972,2]
[333272995,1722011443650,-596.31,0.00013972,2]
[333272996,1722011443661,-500.0,0.00013972,2]
[333272997,1722011443671,-1611.43,0.00013972,2]
[333272998,1722011443680,-500.0,0.00013972,2]
[333272999,1722011443690,-151.0,0.00013972,2]
[333273000,1722011443700,-151.0,0.00013972,2]
[333273001,1722011443709,-530.65,0.00013972,2]
[333273002,1722011443720,-500.0,0.00013972,2]
[333273003,1722011443732,-1088.49,0.00013972,2]
[333273004,1722011443744,-1799.55,0.00013972,2]
[333273005,1722011443754,-500.0,0.00013972,2]
[333273006,1722011443765,-500.0,0.00013972,2]
[333273007,1722011443774,-1519.62413557,0.00014,2]
[333273008,1722011443784,-154.69833824,0.00014,2]
[333273009,1722011443794,-2000.0,0.00014,3]
[333273010,1722011443804,-2000.0,0.00014,10]
[333273011,1722011443822,-505.0,0.00014081,2]
[333273012,1722011443832,-1409.0,0.00014081,2]
[333273013,1722011443843,-150.0,0.00014081,2]
[333273014,1722011443854,-2850.0,0.000141,30]
[333273015,1722011443866,-151.0,0.0001419,2]
[333273016,1722011443881,-151.0,0.0001419,2]
[333273017,1722011443891,-9895.26590383,0.000142,2]
[333273140,1722011480440,200.0,0.0001,2]
[333273141,1722011480494,400.0,0.0001137,2]
[333273143,1722011668444,150.71364408,0.00019117,120]
[333273145,1722012044886,150.71364408,0.00018924,120]
[333273148,1722012345136,-166.6666688,0.00012339,2]
[333273149,1722012345160,-942.2892863,0.00012528,2]
[333273150,1722012345181,-168.981117,0.00012758,2]
[333273151,1722012345203,-168.981117,0.00012832,2]
[333273152,1722012345225,-168.981117,0.00012906,2]
[333273153,1722012345249,-168.981117,0.0001298,2]
[333273154,1722012345270,-168.981117,0.00013054,2]
[333273155,1722012345291,-168.981117,0.00013128,2]
[333273156,1722012345314,-168.981117,0.00013202,2]
[333273157,1722012345335,-168.981117,0.00013275,2]
[333273158,1722012345357,-168.981117,0.00013349,2]
[333273159,1722012345380,-150.112233,0.000134,2]
[333273160,1722012345403,-168.981117,0.00013423,2]
[333273161,1722012345429,-157.334295,0.00013425,2]
[333273162,1722012345451,-1334.03989156,0.00013688,2]
[333273163,1722012428110,-7055.5400552,0.00013688,2]
[333273166,1722012547102,-154.69833824,0.0001,2]
[333273167,1722012590019,150.69860279,0.00019412,120]
[333273191,1722012632784,-13749.61845607,0.00013688,2]
[333273268,1722012638511,-290078.59439593,0.00013688,2]
[333273269,1722012638523,-500.0,0.00013698,2]
[333273270,1722012638532,-500.0,0.00013698,2]
[333273271,1722012638542,-500.0,0.00013698,2]
[333273272,1722012638551,-404.97247093,0.00013698,2]
[333273273,1722012638561,-502.26495527,0.00013698,2]
[333273274,1722012638571,-500.0,0.00013698,2]
[333273275,1722012638581,-500.0,0.00013698,2]
[333273276,1722012638592,-193.38715633,0.00013698,2]
[333273277,1722012638602,-500.0,0.00013698,2]
[333273278,1722012638611,-500.0,0.00013698,2]
[333273279,1722012638621,-500.0,0.00013698,2]
[333273280,1722012638630,-500.0,0.00013698,2]
[333273281,1722012638641,-500.0,0.00013698,2]
[333273282,1722012638651,-500.0,0.00013698,2]
[333273283,1722012638660,-545.09,0.00013698,2]
[333273284,1722012638670,-500.0,0.00013698,2]
[333273285,1722012638679,-500.0,0.00013698,2]
[333273286,1722012638691,-616.32926765,0.00013698,2]
[333273287,1722012638863,-500.0,0.00013698,2]
[333273288,1722012638874,-500.0,0.00013698,2]
[333273289,1722012638884,-500.0,0.00013698,2]
[333273290,1722012638894,-500.0,0.00013698,2]
[333273291,1722012638904,-500.0,0.00013698,2]
[333273292,1722012638914,-500.0,0.00013698,2]
[333273293,1722012638926,-500.0,0.00013698,2]
[333273294,1722012638937,-396.72760412,0.00013698,2]
[333273295,1722012638946,-516.77693941,0.00013698,2]
[333273296,1722012638955,-500.0,0.00013698,2]
[333273297,1722012638967,-500.0,0.00013698,2]
[333273298,1722012638978,-500.0,0.00013698,2]
[333273299,1722012638988,-500.0,0.00013698,2]
[333273300,1722012638998,-708.01,0.00013698,2]
[333273301,1722012639008,-500.0,0.00013698,2]
[333273302,1722012639021,-500.0,0.00013698,2]
[333273303,1722012639033,-546.62,0.00013698,2]
[333273304,1722012639043,-500.0,0.00013698,2]
[333273305,1722012639053,-428.81608943,0.00013698,2]
[333273306,1722012639062,-500.0,0.00013698,2]
[333273307,1722012639072,-500.0,0.00013698,2]
[333273308,1722012639084,-500.0,0.00013698,2]
[333273309,1722012639094,-500.0,0.00013698,2]
[333273310,1722012639104,-532.16509311,0.00013698,2]
[333273311,1722012639114,-500.0,0.00013698,2]
[333273312,1722012639123,-500.0,0.00013698,2]
[333273313,1722012639133,-500.0,0.00013698,2]
[333273314,1722012639144,-667.16,0.00013698,2]
[333273315,1722012639155,-500.0,0.00013698,2]
[333273316,1722012639165,-511.62744072,0.00013698,2]
[333273317,1722012639175,-195.67935358,0.00013698,2]
[333273318,1722012639184,-519.42437233,0.00013698,2]
[333273319,1722012639195,-500.0,0.00013698,2]
[333273320,1722012639205,-500.0,0.00013698,2]
[333273321,1722012639215,-500.0,0.00013698,2]
[333273322,1722012639224,-500.0,0.00013698,2]
[333273323,1722012639234,-500.0,0.00013698,2]
[333273324,1722012639244,-500.0,0.00013698,2]
[333273325,1722012639256,-500.0,0.00013698,2]
[333273326,1722012639267,-632.65,0.00013698,2]